Cogmind - Beta 15 @@@ ROGUE MODE // 2025.05.21 @ 18:21:42 Player: celerysam Result: Destroyed by VX-UDK(R) with Subdweller Machine Gun Performance ------------- Evolutions (0) 0 Regions Visited (2) 400 Robots Destroyed (7) 35 Value Destroyed (225) 225 Prototype IDs (0) 0 Alien Tech Used (0) 0 Bonus (-10) -10 TOTAL SCORE: 650 Bonus ------- Friendly Fire -10 Cogmind --------- Core Integrity 0/250 Matter 266/300 Energy 100/100 System Corruption 0% Temperature Cool (0) Movement Rolling (110) Ox2 Location -10/Subcaves Parts ------- > --- POWER (1) -------- (None) > --- PROPULSION (2) --- Wheel > --- UTILITY (2) ------ Large Storage Unit Signal Interpreter > --- WEAPON (2) ------- Small Laser Assault Rifle > --- INVENTORY (15) --- Ion Engine Light Ion Engine Light Treads Light Treads Light Treads Light Treads Aluminum Leg Aluminum Leg Wheel Small Storage Unit Particle Gun Light Assault Rifle Peak State ------------ > --- POWER ------------ Light Ion Engine > --- PROPULSION ------- Wheel Wheel > --- UTILITY ---------- Large Storage Unit Light Armor Plating > --- WEAPON ----------- Assault Rifle Light Assault Rifle > --- INVENTORY -------- Ion Engine Light Treads Light Treads Light Treads Aluminum Leg Aluminum Leg Wheel Small Storage Unit Signal Interpreter Small Laser [Rating: 8] Favorites ----------- Power Light Ion Engine Engine Light Ion Engine Propulsion Wheel Leg Aluminum Leg Wheel Wheel Utility Large Storage Unit Storage Large Storage Unit Processor Signal Interpreter Protection Light Armor Plating Weapon Assault Rifle Energy Gun Small Laser Ballistic Gun Assault Rifle Build | -11 -10 -10 ------- Run | Yrd Mat Sub Slots Evolved . | . . . Power . | . . . Propulsion . | . . . Utility . | . . . Weapon . | . . . Parts Attached 13 | 6 7 . Power 1 | 1 . . Engine 1 | 1 . . Core . | . . . Reactor . | . . . Propulsion 4 | 2 2 . Treads . | . . . Leg 2 | 2 . . Wheel 2 | . 2 . Hover . | . . . Flight . | . . . Utility 4 | 1 3 . Device . | . . . Storage 2 | 1 1 . Processor 1 | . 1 . Hackware . | . . . Protection 1 | . 1 . Artifact . | . . . Weapon 4 | 2 2 . Energy Gun 1 | . 1 . Energy Cannon . | . . . Ballistic Gun 3 | 2 1 . Ballistic Cannon . | . . . Launcher . | . . . Special Weapon . | . . . Impact Weapon . | . . . Slashing Weapon . | . . . Piercing Weapon . | . . . Special Melee Weapon . | . . . Unidentified Prototypes . | . . . Parts Lost 4 | . 4 . Power 1 | . 1 . Propulsion 1 | . 1 . Utility 1 | . 1 . Weapon 1 | . 1 . Highest Loss Streak 3 | . 3 . To Critical Strikes . | . . . Average Backups 9 | 4 10 12 Power 1 | . 1 2 Propulsion 5 | 2 5 7 Utility 1 | . 1 1 Weapon 1 | . 1 2 Tool/Special . | . . . Unused Backups 8 | . . 8 Power 2 | . . 2 Propulsion 5 | . . 5 Utility . | . . . Weapon 1 | . . 1 Tool/Special . | . . . Average Slot Usage (%) 75 | . 76 71 Engine 6 | . 8 . Leg 6 | . 9 . Wheel 13 | . 12 14 Storage 14 | . 14 14 Processor 3 | . . 14 Protection 2 | . 2 . Energy Gun 8 | . 6 14 Ballistic Gun 19 | . 21 14 Peak Build Rating 8 | 6 8 6 Average Rating 5 | 4 5 6 On Entrance 4 | . 6 6 Naked Turns . | . . . Heaviest Build 29 | 11 29 23 Greatest Support 20 | 20 20 10 Greatest Overweight (x) 2 | . 2 2 Average Overweight (x) 1 | . 1 2 Largest Inventory Capacity 15 | 8 15 15 Average Capacity 13 | 6 14 15 Most Carried 13 | 6 13 12 Average Carried 10 | 5 10 12 Final Capacity 15 | 8 15 15 Final Carried 12 | 6 12 12 Class Distribution -------------------- 100% | Mutant Dominant Class ---------------- Mutant | -10/Materials Mutant | -10/Subcaves Resources | -11 -10 -10 ----------- Run | Yrd Mat Sub Matter Collected 371 | 189 182 . Remotely . | . . . Salvage Created 317 | . 273 44 Parts 16 | . 13 3 Haulers Intercepted 1 | . 1 . Recyclers Shooed . | . . . Parts Field Recycled . | . . . Retrieved Matter . | . . . Parts Self-Destructed . | . . . Prevented . | . . . Kills | -11 -10 -10 ------- Run | Yrd Mat Sub Combat Hostiles Destroyed 6 | . 5 1 Guns 6 | . 5 1 Classes Destroyed 3 | . 2 1 Hauler 1 | . 1 . Grunt 5 | . 5 . Subdweller 1 | . . 1 Best Kill Streak 3 | . 3 1 Combat Bots Only 2 | . 2 1 Max Kills in Single Turn 1 | . 1 1 Gunslinging . | . . . Exploded . | . . . Melee . | . . . Uniques/NPCs Destroyed . | . . . Combat | -11 -10 -10 -------- Run | Yrd Mat Sub Hostile Shots Fired 76 | . 68 8 Missed 19 | . 14 5 Hits 57 | . 54 3 Projectile 57 | . 54 3 Damage Taken 730 | . 666 64 Core 252 | . 188 64 Absorbed by Shields . | . . . Core Remaining (%) 100 | 100 . . Volleys Fired 27 | . 19 8 Largest 2 | . 2 2 Hottest 60 | . 60 60 Shots Fired 54 | . 38 16 Gun 54 | . 38 16 Cannon . | . . . Launcher . | . . . Special . | . . . Kinetic 41 | . 33 8 Thermal 13 | . 5 8 Explosive . | . . . Electromagnetic . | . . . Robot Hit Streak 7 | . 7 7 Robot Miss Streak 3 | . 3 1 Penetration Max . | . . . Secondary Targets 2 | . 1 1 Max Gunslinging Chain 1 | . 1 1 Shots Hit Robots 39 | . 25 14 Core Hits 16 | . 13 3 Critical Kills . | . . . Critical Parts Destroyed . | . . . Critical Strikes 1 | . . 1 Destroy 1 | . . 1 Melee Attacks . | . . . Impact . | . . . Slashing . | . . . Piercing . | . . . Sneak Attacks . | . . . Combat Hostiles . | . . . Follow-up Attacks . | . . . Damage Inflicted 400 | . 270 130 Guns 400 | . 270 130 Cannons . | . . . Explosions . | . . . Melee . | . . . Ramming . | . . . Kinetic 301 | . 238 63 Thermal 99 | . 32 67 Explosive . | . . . Electromagnetic . | . . . Impact . | . . . Slashing . | . . . Piercing . | . . . Highest Corruption . | . . . Average Corruption . | . . . Corruption Purged . | . . . Corruption Blocked . | . . . Overload Shots . | . . . Overflow Damage . | . . . Projectiles . | . . . Explosions . | . . . Melee . | . . . Knockbacks . | . . . Impact . | . . . Kinetic . | . . . Secondary . | . . . Self-Inflicted Damage . | . . . Shots . | . . . Rammed . | . . . Targets Rammed . | . . . Kicked . | . . . Crushed . | . . . Highest Temperature 63 | . 63 . Average Temperature 21 | . 21 . Received Heat Transfer 372 | . 366 6 Siege Activations . | . . . Martial Activations . | . . . Shielding Activations . | . . . Robots Disrupted . | . . . Combat Hostiles . | . . . Robots Corrupted . | . . . Combat Hostiles . | . . . Parts Fried . | . . . Impact Corruptions . | . . . Robots Melted . | . . . Combat Hostiles . | . . . Parts Melted . | . . . Heat Transferred 225 | . 75 150 Parts Sabotaged . | . . . Parts Stolen . | . . . Parts Stripped . | . . . Power Chain Reactions . | . . . Alert | -11 -10 -10 ------- Run | Yrd Mat Sub Maximum Alert Level . | . . . Low Security (%) 100 | 100 100 . Level 1 . | . . . Level 2 . | . . . Level 3 . | . . . Level 4 . | . . . Level 5 . | . . . High Security . | . . . Max Security . | . . . Peak Influence 50 | . 50 . Initial . | . . . Average 8 | . 10 . Influence Increases 127 | . 127 . Destroy 0b10 Robot/C 100 | . 100 . Destroy 0b10 Robot/NC 5 | . 5 . Destroy Leader 22 | . 22 . Influence Decreases 127 | . 127 . Time Decay 90 | . 90 . Lost Part 37 | . 37 . Squads Dispatched 3 | . 3 . Investigation 1 | . 1 . Extermination . | . . . Reinforcement 2 | . 2 . Assault . | . . . Garrison . | . . . Intercept . | . . . Searches Triggered . | . . . Construction Impeded . | . . . Haulers Reinforced . | . . . Active Scanning Responses . | . . . Cargo Convoy Interrupts . | . . . Stealth | -11 -10 -10 --------- Run | Yrd Mat Sub Distress Signals 1 | . 1 . Communications Jammed . | . . . Distress Signals . | . . . Times Spotted 7 | . 5 2 Peak Tracking Total 3 | . 3 2 Tactical Retreats . | . . . Traps | -11 -10 -10 ------- Run | Yrd Mat Sub Traps Triggered . | . . . Indirectly . | . . . Trap Hack Attempts . | . . . Triggered . | . . . Disarmed . | . . . Reprogrammed . | . . . Reused . | . . . Traps Extracted . | . . . Installed . | . . . Triggered . | . . . Machines | -11 -10 -10 ---------- Run | Yrd Mat Sub Machines Disabled . | . . . Max in Single Turn . | . . . Machines Repaired . | . . . Machines Dismantled . | . . . Machines Sabotaged . | . . . Overloaded Fab Kills . | . . . Hacking | -11 -10 -10 --------- Run | Yrd Mat Sub Machines Accessed . | . . . Terminals . | . . . Fabricators . | . . . Repair Stations . | . . . Recycling Units . | . . . Scanalyzers . | . . . Garrison Access . | . . . Total Hacks . | . . . Successful . | . . . Failed . | . . . Catastrophic . | . . . Database Lockouts . | . . . Manual . | . . . Terminals . | . . . Fabricators . | . . . Repair Stations . | . . . Recycling Units . | . . . Scanalyzers . | . . . Garrison Access . | . . . Terminal Hacks . | . . . Fabricator Hacks . | . . . Repair Station Hacks . | . . . Recycling Unit Hacks . | . . . Scanalyzer . | . . . Garrison Access Hacks . | . . . Unauthorized Hacks . | . . . Terminals . | . . . Fabricators . | . . . Repair Stations . | . . . Recycling Units . | . . . Scanalyzers . | . . . Garrison Access . | . . . Data Cores Recovered . | . . . Used . | . . . Hacking Detections . | . . . Full Trace Events . | . . . Feedback Events . | . . . Feedback Blocked . | . . . Robot Schematics Acquired . | . . . Robots Built . | . . . Authchips . | . . . Time . | . . . Total Robot Build Rating . | . . . Part Schematics Acquired . | . . . Parts Built . | . . . Authchips . | . . . Time . | . . . Total Part Build Rating . | . . . Parts Repaired . | . . . Time . | . . . Parts Recycled . | . . . Recycled Matter . | . . . Retrieved Matter . | . . . Retrieved Components . | . . . Parts Scanalyzed . | . . . Part Schematics Acquired . | . . . Parts Damaged . | . . . Bothacking | -11 -10 -10 ------------ Run | Yrd Mat Sub Used RIF Installer . | . . . Robots Hacked . | . . . Non-combat . | . . . Combat . | . . . Robot Hacks Applied . | . . . Relay Couplers Released . | . . . Fabnet Peak Effective % . | . . . Robots Rewired . | . . . Allies Hacked . | . . . Hacks Repelled . | . . . Allies | -11 -10 -10 -------- Run | Yrd Mat Sub Total Allies . | . . . Largest Group . | . . . Highest-Rated Group . | . . . Highest-Rated Ally . | . . . Total Orders . | . . . Ally Attacks . | . . . Total Damage . | . . . Kills . | . . . Allies Corrupted . | . . . Allies Melted . | . . . Intel | -11 -10 -10 ------- Run | Yrd Mat Sub Active Infowar (turns) . | . . . Robot Analysis Total . | . . . Derelict Logs Recovered . | . . . Drone Launches . | . . . Drone Recoveries . | . . . Exploration | -11 -10 -10 ------------- Run | Yrd Mat Sub Turns Passed 584 | 69 391 124 Spaces Moved 364 | 53 221 90 Core 13 | 13 . . Treads . | . . . Legs 107 | 40 67 . Wheels 244 | . 154 90 Hover . | . . . Flight . | . . . Fastest Speed 50 | 50 95 110 Average Speed 119 | 102 127 110 Slowest Speed 190 | 120 190 110 Overloaded Moves . | . . . Propulsion Burnouts . | . . . Robots Hopped . | . . . Potential Cave-ins . | . . . Cave-ins Triggered . | . . . Exploration Rate (%) 19 | 4 44 9 Regions Visited 2 Branch Regions 1 Pre-discovered Areas . | . . . Known Exits Taken 1 | . 1 . Unknown Exits Taken 1 | 1 . . Scrap Searched . | . . . Spaces Dug . | . . . Terrain Destroyed . | . . . Melee . | . . . Projectile . | . . . AOE . | . . . Terrain Rammed . | . . . Walls Destroyed . | . . . Machines Disabled . | . . . Actions | -11 -10 -10 --------- Run | Yrd Mat Sub Total 457 | 64 293 100 Wait 40 | . 38 2 Move 362 | 52 220 90 Hop . | . . . Pick Up 15 | 6 9 . Fast Attach 6 | 6 . . Attach 3 | . 3 . Detach . | . . . Swap 4 | . 4 . Drop . | . . . Fire 27 | . 19 8 Melee . | . . . Ram . | . . . Kick . | . . . Crush . | . . . Escape Stasis . | . . . Rewire . | . . . Trap . | . . . Miscellaneous . | . . . Route ------- -11/Scrapyard -10/Materials (discovered 3 exits: *Mat / [*Min] / *Sub) -10/Subcaves History --------- Turn | Location | Event 12 | -11/Scrapyard | Discovered new exit (range 15) 70 | -11/Scrapyard | Entered Materials 71 | -10/Materials | Met a group of wandering Federalists 174 | -10/Materials | Discovered new exit (range 13) 253 | -10/Materials | Discovered new exit (range 12) 293 | -10/Materials | Core integrity fell below 50% 315 | -10/Materials | Build established: Mutant 327 | -10/Materials | Lost 3 parts (1p1n1u) 447 | -10/Materials | Identified exit to Materials 458 | -10/Materials | Discovered new exit (range 5) 460 | -10/Materials | Identified exit to Subcaves 461 | -10/Materials | Entered Subcaves 462 | -10/Subcaves | Continued accompanying wandering Federalists (6) 573 | -10/Subcaves | Core integrity fell below 20% 585 | -10/Subcaves | Destroyed by VX-UDK(R) with Subdweller Machine Gun Last Messages --------------- LOCATION=SUBCAVES AMBIENT_HEAT=-10 GOAL=ESCAPE 00483_ NY-T2B(g): "Damn I thought there was a shortcut around here somewhere, does anyone remember where it is?" 00494_ NY-T2B(g): "We could head over to Recycling and return via the Scraplab, but it would be faster if we could just find that shortcut." 00562_ 7Z-S64(g) suffers critical hit (Destroy). 00564_ KT-8LI(g) destroyed. 00567_ 7Z-S64(g) destroyed. 00570_ Subatomizers dissect the Aluminum Leg. 00570_ OY-80K(g) destroyed. 00571_ QN-Y06(R) suffers critical hit (Destroy). 00579_ NY-T2B(g) destroyed. 00580_ QN-Y06(R) destroyed. 00580_ Switching to secondary target: VX-UDK(R). 00584_ Subatomizers dissect the Aluminum Leg. Map ----- +----------------------------------------------------+ | ???????????????????????????#### ## # | | ???????????????????????????# # ### | | ???????????????????????????# # # # | | ?????????????????###???????## ## "## ## | | ????????????????## ############?# ## ##" ####? | | ????????????????# ##???####### ##? #??? | | ????????????????# #????????## ##????#??? | | ????????????????##### #?????#### ##??????? | | ????????????????????# ##?????# #??????? | | ???????????????????## ########??## # "#???? | | ??????????????????## ##### ##??# """ #?????? | | ?????????????????## #### ##?# ## " ""???? | | ????????????????## ### ### #### ?? | | ????????????????# ## #?######? | | ????????????????## ### #???????? | | ?????????????????## ## #### #???????? | | ??????????????????# #??## #???????? | | ??????????????????## ##??## #???????? | | ???????????????????#### ##??# ##???????? | | ??????????????????????##### ##?#####????????? | | ????????????????????????### #??????????????? | | ??????????? ?????#?????## ###????????????? | | ????????? ## ???# ##???????????? | | ????????? ## #???????????? | | ????????? #????????? | | ????????? ## @ #????????? | | ???????????? ??????# %*! ""### ##????????? | | ????????????????? %=%["""""##??###?????????? | | ?????????????? %R """"""" #???????????????? | | ??????????? """""" #??????????????? | | ???????????? ## ## ""%* " """"??????????????? | | ???????????????# "?## ==[ ###" ?"??????????????? | | ??????????????# ???# #??" ????????????????? | | ??????????????# % %???## ????????????????????? | | ??????????????# ??????#### %????????????????????? | | ??????????????# ??????????" ????????????????????? | | ??????????????? ?????????????????????????????????? | | ?????????????????????????????????????????????????? | | ?????????????????????????????????????????????????? | | ?????????????????????????????????????????????????? | | ?????????????????????????????????????????????????? | | ?????????????????????????????????????????????????? | | ?????????????????????????????????????????????????? | | ?????????????????????????????????????????????????? | | ?????????????????????????????????????????????????? | | ?????????????????????????????????????????????????? | | ?????????????????????????????????????????????????? | | ?????????????????????????????????????????????????? | | ?????????????????????????????????????????????????? | | ?????????????????????????????????????????????????? | +----------------------------------------------------+ Best States ------------- Heat Dissipation 25 Energy Generation 10 Energy Capacity 125 Matter Stores 300 Matter Capacity 300 Sight Range 16 Terrain Scan Density 10 Armor Coverage 150 Evasion (%) 55 Item Schematics ----------------- None Robot Schematics ------------------ None Fabricated ------------ Nothing Repaired ---------- Nothing Alien Tech Used ----------------- None Achievements -------------- None Challenges ------------ None Game ------ Seed ConceptChainInsulator Manual? 0 Play Time 00:05:23 Cumulative 255.7 hours Start 2025.05.21 @ 18:15:09 End 2025.05.21 @ 18:21:42 Sessions 1 Manual Loads 0 Difficulty Rogue Special Mode None Game No. 380 Rogue 380 Adventurer 0 Explorer 0 Win Type - Total 1 Types 1/0/0/0/0/0/0/0/0/0 Lore% 61 Gallery% 62 Achievement% 43 Wizard Run 0 Options --------- Layout 1 ASCII 0 Keyboard 0 Movement Mouse Keybinds 0 Fullscreen 2 Font 24/Smallcaps Map View 50x35 Zoom Use 0% Tactical HUD 1 Map Filters NONE Filters NONE Steam 1 RUN: 0b032cf7-5c0a-45a8-86c1-d14a54bd0f6a